bitfinex-derivatives/quotes_BTCF0:USTF0_20251002
["timestamp","ask_amount","ask_price","bid_price","bid_amount"]
[1759437112321,1.53764784,120540.0,120530.0,0.51914813]
[1759437112527,1.17684784,120540.0,120530.0,0.51914813]
[1759437113515,1.18661784,120540.0,120530.0,0.10580813]
[1759437113715,1.54741784,120540.0,120530.0,0.10580813]
[1759437114525,1.2281419,120540.0,120530.0,0.10580813]
[1759437114728,1.54741784,120540.0,120530.0,0.10580813]
[1759437115726,1.86669378,120540.0,120530.0,5.933e-05]
[1759437116020,1.54741784,120540.0,120530.0,5.933e-05]
[1759437116725,1.54741784,120540.0,120530.0,0.02327933]
[1759437118923,1.54741784,120540.0,120530.0,0.10618813]
[1759437120029,0.78596784,120540.0,120530.0,0.11918813]
[1759437120221,1.53756784,120540.0,120530.0,0.11918813]
[1759437120826,0.4666919,120540.0,120530.0,0.43846407]
[1759437121129,0.8574919,120540.0,120530.0,0.43846407]
[1759437121322,0.8574919,120540.0,120530.0,0.11918813]
[1759437122125,1.17676784,120540.0,120530.0,0.11918813]
[1759437122326,0.42516784,120540.0,120530.0,0.11918813]
[1759437122526,0.8574919,120540.0,120530.0,0.11918813]
[1759437125127,0.8574919,120540.0,120530.0,0.43846407]
[1759437125427,0.8574919,120540.0,120530.0,0.11918813]
[1759437126522,0.02299,120540.0,120530.0,0.11918813]
[1759437126721,0.77455,120540.0,120530.0,0.11918813]
[1759437126923,0.8574519,120540.0,120530.0,0.43846407]
[1759437127123,0.77455,120540.0,120530.0,0.43846407]
[1759437127425,0.3608,120550.0,120540.0,0.0829019]
[1759437127632,1.216285,120550.0,120540.0,0.43839784]
[1759437128530,0.77259,120550.0,120540.0,0.43839784]
[1759437130325,0.855485,120550.0,120540.0,0.43839784]
[1759437130927,0.855485,120550.0,120540.0,0.50610551]
[1759437131134,1.216285,120550.0,120540.0,0.50610551]
[1759437131330,1.53556094,120550.0,120540.0,0.18682957]
[1759437132335,1.216285,120550.0,120540.0,0.18682957]
[1759437132535,1.216245,120550.0,120540.0,0.18682957]
[1759437132732,1.216245,120550.0,120540.0,0.50610551]
[1759437133035,0.77255,120550.0,120540.0,0.50610551]
[1759437133537,0.855445,120550.0,120540.0,0.50610551]
[1759437134036,1.17472094,120550.0,120540.0,0.18682957]
[1759437134931,0.02103,120550.0,120540.0,0.50610551]
[1759437135126,0.8554406,120560.0,120550.0,0.119115]
[1759437135330,1.53551654,120560.0,120550.0,0.03622]
[1759437136838,1.54528654,120560.0,120550.0,0.02322]
[1759437137342,1.53551654,120560.0,120550.0,0.03622]
[1759437138537,1.55733404,120560.0,120550.0,0.03622]
[1759437139939,1.53551654,120560.0,120550.0,0.119115]
[1759437142241,1.53551654,120560.0,120550.0,0.03622]
[1759437143138,1.56702028,120560.0,120550.0,0.03622]
[1759437143537,1.55725028,120560.0,120550.0,0.03622]
[1759437143745,1.55725028,120560.0,120550.0,0.119115]
[1759437144042,1.53551654,120560.0,120550.0,0.119115]
[1759437144638,1.53551654,120560.0,120550.0,0.03622]
[1759437144941,1.55725046,120560.0,120550.0,0.03622]
[1759437145537,1.56702046,120560.0,120550.0,0.03622]
[1759437145736,0.0829019,120540.0,120530.0,0.17828074]
[1759437145939,1.86538378,120540.0,120530.0,0.05971577]
[1759437146339,1.54610784,120540.0,120530.0,0.05971577]
[1759437146743,1.54610784,120540.0,120530.0,5.933e-05]
[1759437147045,1.86538378,120540.0,120530.0,5.933e-05]
[1759437148043,2.22618378,120540.0,120530.0,5.933e-05]
[1759437148741,0.1146325,120510.0,120500.0,0.0744842]
[1759437148941,1.86538438,120510.0,120500.0,0.0744842]
[1759437149138,2.26538438,120510.0,120500.0,0.0744842]
[1759437149439,0.1146594,120500.0,120490.0,0.0744842]
[1759437149635,0.78131256,120500.0,120490.0,0.0744842]
[1759437149838,1.2006816,120500.0,120490.0,0.0744842]
[1759437150042,1.2006816,120500.0,120480.0,0.10370037]
[1759437150242,0.1146532,120480.0,120470.0,0.10370037]
[1759437150440,0.8660532,120480.0,120470.0,0.10370037]
[1759437150742,1.54646294,120480.0,120470.0,0.03636]
[1759437151135,0.1048901,120470.0,120460.0,0.41369961]
[1759437151339,0.43426984,120470.0,120460.0,0.03919961]
[1759437151537,0.42449984,120470.0,120460.0,0.23955688]
[1759437151738,0.43426984,120470.0,120460.0,0.14289998]
[1759437151941,0.4754601,120470.0,120460.0,0.15659998]
[1759437152144,1.54654984,120470.0,120460.0,0.01653961]
[1759437152344,1.54654984,120470.0,120460.0,0.05289961]
[1759437152643,1.22699943,120470.0,120460.0,0.01653961]
[1759437152840,1.22699943,120470.0,120460.0,0.05289961]
[1759437153040,1.54660917,120470.0,120460.0,0.03919961]
[1759437153241,1.54660917,120470.0,120460.0,0.01653961]
[1759437153446,1.86621891,120470.0,120460.0,0.01653961]
[1759437153746,1.86621891,120470.0,120460.0,0.03919961]
[1759437153942,1.54664917,120470.0,120460.0,0.05289961]
[1759437154248,1.53687917,120470.0,120460.0,0.05289961]
[1759437154444,1.54664917,120470.0,120460.0,0.03919961]
[1759437154946,0.79512917,120470.0,120460.0,0.03919961]
[1759437155349,1.54668917,120470.0,120460.0,0.03919961]
[1759437155649,1.22711943,120470.0,120460.0,0.03919961]
[1759437155836,1.54672917,120470.0,120460.0,0.03919961]
[1759437156747,0.47551943,120470.0,120460.0,0.03919961]
[1759437157051,1.54672917,120470.0,120460.0,0.03919961]
[1759437157436,1.22711943,120470.0,120460.0,0.12215651]
[1759437157947,1.54672917,120470.0,120460.0,0.12215651]
[1759437159149,1.86633891,120470.0,120460.0,0.01653961]
[1759437160247,1.88584845,120470.0,120460.0,0.01653961]
[1759437160646,1.88584845,120470.0,120460.0,0.12215651]
[1759437160842,1.56623871,120470.0,120460.0,0.12215651]
[1759437161043,1.24662897,120470.0,120460.0,0.12215651]
[1759437161352,1.56623871,120470.0,120460.0,0.09949651]
[1759437161648,1.88584845,120470.0,120460.0,0.01653961]
[1759437161845,1.88584845,120470.0,120460.0,0.09949651]
[1759437162950,1.88584845,120470.0,120460.0,0.12215651]
[1759437163151,1.88584845,120470.0,120460.0,0.09949651]
[1759437163844,1.88584845,120470.0,120460.0,0.01653961]
[1759437164555,0.1146738,120450.0,120440.0,7.406e-05]
[1759437164752,1.86645328,120450.0,120440.0,7.406e-05]
[1759437165355,1.54684354,120450.0,120440.0,0.10570476]
[1759437165551,1.54684354,120450.0,120440.0,7.406e-05]
[1759437165552,1.86645328,120450.0,120440.0,7.406e-05]
[1759437165950,1.54684354,120450.0,120440.0,0.08304476]
[1759437166150,1.2272338,120450.0,120440.0,0.10570476]
[1759437166451,1.54684354,120450.0,120440.0,0.10570476]
[1759437166652,1.54684354,120450.0,120440.0,7.406e-05]
[1759437166951,1.86645328,120450.0,120440.0,7.406e-05]
[1759437167149,2.22725328,120450.0,120440.0,7.406e-05]
[1759437167452,1.5880338,120450.0,120440.0,7.406e-05]
[1759437167648,2.22725328,120450.0,120440.0,7.406e-05]
[1759437167845,2.2938434,120450.0,120440.0,7.406e-05]
[1759437168353,1.66306013,120450.0,120440.0,7.406e-05]
[1759437168856,2.2939234,120450.0,120440.0,7.406e-05]
[1759437171645,1.65470392,120450.0,120440.0,7.406e-05]
[1759437171840,2.2939234,120450.0,120440.0,7.406e-05]
[1759437173246,2.30229716,120450.0,120440.0,7.406e-05]
[1759437174250,2.32645759,120450.0,120440.0,7.406e-05]
[1759437174450,2.30229716,120450.0,120440.0,7.406e-05]
[1759437174951,2.30229716,120450.0,120420.0,0.0137]
[1759437174952,0.0829776,120430.0,120420.0,0.1193403]
[1759437175155,1.85685708,120430.0,120420.0,0.1193403]
[1759437175543,1.86662708,120430.0,120420.0,0.1193403]
[1759437175752,1.86662708,120430.0,120420.0,0.1056403]
[1759437175955,1.54712075,120430.0,120420.0,0.1056403]
[1759437176949,1.54712075,120430.0,120420.0,0.1185603]
[1759437177643,1.54712075,120430.0,120420.0,0.1056403]
[1759437178660,1.86673049,120430.0,120420.0,0.1056403]
[1759437179453,0.1054945,120420.0,120410.0,0.13625468]
[1759437179644,0.74471398,120420.0,120410.0,0.13625468]
[1759437179844,0.74471398,120420.0,120410.0,0.1192479]
[1759437180751,0.42510424,120420.0,120410.0,0.1192479]
[1759437180954,1.17710424,120420.0,120410.0,0.1192479]
[1759437181153,0.42510424,120420.0,120410.0,0.43885764]
[1759437181453,1.17710424,120420.0,120410.0,0.1192479]
[1759437181851,1.17710424,120420.0,120410.0,0.43885764]
[1759437182054,1.17710424,120420.0,120410.0,0.1192479]
[1759437182254,1.17710424,120420.0,120410.0,0.43885764]
[1759437182958,0.8574945,120420.0,120410.0,0.43885764]
[1759437183155,1.17710424,120420.0,120410.0,0.1192479]
[1759437183354,1.17710424,120420.0,120410.0,0.43885764]
[1759437183751,1.17710424,120420.0,120410.0,0.79965764]
[1759437184151,1.17710424,120420.0,120410.0,0.43885764]
[1759437184351,0.42510424,120420.0,120410.0,0.43885764]
[1759437184650,1.49671398,120420.0,120410.0,0.1192479]
[1759437184951,1.49671398,120420.0,120410.0,0.43885764]
[1759437186256,1.49671398,120420.0,120410.0,0.1192479]
[1759437186554,1.49671398,120420.0,120410.0,0.43885764]
[1759437186754,0.74471398,120420.0,120410.0,0.43885764]
[1759437186953,1.49675398,120420.0,120410.0,0.43885764]
[1759437187357,1.49675398,120420.0,120410.0,0.1192479]
[1759437187559,1.49675398,120420.0,120410.0,0.43885764]
[1759437189361,1.49675398,120420.0,120410.0,0.1192479]
[1759437189761,1.49675398,120420.0,120410.0,0.43885764]
[1759437190159,1.85755398,120420.0,120410.0,0.03626]
[1759437190361,0.1055014,120410.0,120400.0,0.1192543]
[1759437190561,0.78591114,120410.0,120400.0,0.1192543]
[1759437190761,0.38331,120410.0,120400.0,0.43886404]
[1759437190963,0.70291974,120410.0,120400.0,0.43886404]
[1759437191163,0.34211974,120410.0,120400.0,0.43886404]
[1759437191864,1.09415974,120410.0,120400.0,0.1192543]
[1759437192059,1.09415974,120410.0,120400.0,0.1055543]
[1759437192264,0.77455,120410.0,120400.0,0.1184743]
[1759437192566,0.02251,120410.0,120400.0,0.43808404]
[1759437192757,1.09415974,120410.0,120400.0,0.43808404]
[1759437192956,0.02251,120410.0,120400.0,0.75769378]
[1759437193153,0.77455,120420.0,120410.0,0.1184714]
[1759437193364,0.04571331,120420.0,120410.0,0.79888114]
[1759437194262,0.04571331,120420.0,120410.0,0.43808114]
[1759437194465,0.36532305,120420.0,120410.0,0.1184714]
[1759437194768,0.36532305,120420.0,120410.0,0.43808114]
[1759437195161,1.11736305,120420.0,120410.0,0.1184714]
[1759437195362,0.36532305,120420.0,120410.0,0.43808114]
[1759437195562,1.11736305,120420.0,120410.0,0.4792714]
[1759437195960,1.11736305,120420.0,120410.0,0.79888114]
[1759437199067,1.09415974,120420.0,120410.0,0.79888114]
[1759437200466,0.77455,120420.0,120410.0,0.79888114]
[1759437200965,1.09415974,120420.0,120410.0,0.79888114]
[1759437201162,1.09415974,120420.0,120410.0,0.4792714]
[1759437201368,1.09415974,120420.0,120410.0,0.79888114]
[1759437202565,1.09415974,120420.0,120410.0,0.4792714]
[1759437203061,1.09415974,120420.0,120410.0,0.79888114]
[1759437204870,0.77455,120420.0,120410.0,0.79888114]
[1759437205063,1.09415974,120420.0,120410.0,0.79888114]
[1759437205468,1.09415974,120420.0,120410.0,0.43808114]
[1759437206071,0.34211974,120420.0,120410.0,0.49774806]
[1759437206263,0.34211974,120420.0,120410.0,0.85854806]
[1759437206264,1.09415974,120420.0,120410.0,0.85854806]
[1759437207364,1.09415974,120420.0,120410.0,0.49774806]
[1759437209070,1.45495974,120420.0,120410.0,0.49774806]
[1759437209269,1.09415974,120420.0,120410.0,0.49774806]
[1759437210272,0.77455,120420.0,120410.0,0.49798621]
[1759437211473,0.77455,120420.0,120410.0,0.41499481]
[1759437211474,1.13535,120420.0,120410.0,0.41499481]
[1759437211668,0.03145,120410.0,120400.0,0.10895665]
[1759437211972,0.35129789,120410.0,120400.0,0.19195495]
[1759437212172,0.71209789,120410.0,120400.0,0.19195495]
[1759437212568,0.79508929,120410.0,120400.0,0.19195495]
[1759437212772,0.38248,120410.0,120400.0,0.51180284]
[1759437213074,0.77368,120410.0,120400.0,0.51180284]
[1759437213476,0.02168,120410.0,120400.0,0.51180284]
[1759437213775,0.77372,120420.0,120410.0,0.1175814]
[1759437213975,0.77372,120420.0,120410.0,0.43742929]
[1759437214577,0.02168,120420.0,120410.0,0.79822929]
[1759437214874,0.02168,120420.0,120410.0,0.87267594]
[1759437215269,1.21760111,120430.0,120420.0,0.1175745]
[1759437215472,1.21760111,120430.0,120420.0,0.43742239]
[1759437215669,0.02178341,120430.0,120420.0,0.43742239]
[1759437215866,1.60591176,120430.0,120410.0,0.08744665]
[1759437216074,0.1144414,120410.0,120400.0,0.1175077]
[1759437216272,1.54740929,120410.0,120400.0,0.19195435]
[1759437216875,1.94740929,120410.0,120400.0,0.07444665]
[1759437217076,0.1144483,120400.0,120390.0,0.15744815]
[1759437217278,1.13460249,120400.0,120390.0,0.07444665]
[1759437217581,0.1144752,120390.0,120380.0,0.27548361]
[1759437217778,1.86753098,120390.0,120380.0,0.08877114]
[1759437217974,2.26753098,120390.0,120380.0,0.08877114]
[1759437218379,2.26753098,120390.0,120370.0,0.0746988]
[1759437218380,0.0830121,120380.0,120370.0,0.0746988]
[1759437218580,0.78323754,120380.0,120370.0,0.0746988]
[1759437218881,1.93619754,120380.0,120370.0,0.0876988]
[1759437219284,1.53619754,120380.0,120370.0,0.0876988]
[1759437219487,1.53619754,120380.0,120370.0,0.0130735]
[1759437219684,0.78323754,120380.0,120370.0,0.0346635]
[1759437219989,0.76365999,120380.0,120370.0,0.0346635]
[1759437220286,1.53610929,120380.0,120370.0,0.0346635]
[1759437220483,1.53610929,120380.0,120370.0,0.43753039]
[1759437220484,0.4438121,120380.0,120370.0,0.43753039]
[1759437220689,1.51669999,120380.0,120370.0,0.1176825]
[1759437220889,0.76365999,120380.0,120370.0,0.1176825]
[1759437221285,1.51677999,120380.0,120370.0,0.1176825]
[1759437221680,0.0830121,120380.0,120370.0,0.1176825]
[1759437221887,0.76365719,120390.0,120380.0,0.1176021]
[1759437222186,1.51677719,120390.0,120380.0,0.1176021]
[1759437222379,1.1969693,120390.0,120380.0,0.1176021]
[1759437222789,1.51681719,120390.0,120380.0,0.1176021]
[1759437224087,1.51685719,120390.0,120380.0,0.1176021]
[1759437225086,1.51677719,120390.0,120380.0,0.1176021]
[1759437225487,0.76365719,120390.0,120380.0,0.1176021]
[1759437225684,0.4438052,120390.0,120380.0,0.1176021]
[1759437225883,1.15589309,120390.0,120380.0,0.1176021]
[1759437226493,1.51669309,120390.0,120380.0,0.1176021]
[1759437226994,1.51669309,120390.0,120380.0,0.03459]
[1759437227395,1.51669309,120390.0,120380.0,0.19210967]
[1759437227595,1.51669309,120390.0,120380.0,0.1176021]
[1759437228786,1.43368789,120390.0,120380.0,0.1176021]
[1759437228992,1.51669309,120390.0,120380.0,0.1176021]
[1759437229697,1.15589309,120390.0,120380.0,0.1176021]
[1759437232090,1.15577309,120390.0,120380.0,0.1176021]
[1759437232395,1.51657309,120390.0,120380.0,0.1176021]
[1759437232599,1.15577309,120390.0,120380.0,0.1176021]
[1759437233798,1.1967252,120390.0,120380.0,0.1176021]
[1759437233999,1.51657309,120390.0,120380.0,0.1176021]
[1759437235098,1.15577309,120390.0,120380.0,0.1176021]
[1759437235492,0.8359252,120390.0,120380.0,0.1176021]
[1759437235888,1.15577309,120390.0,120380.0,0.1176021]
[1759437236392,0.40285309,120390.0,120380.0,0.43744999]
[1759437236596,0.8356852,120390.0,120380.0,0.03459]
[1759437236798,1.1964852,120390.0,120380.0,0.1176021]
[1759437236997,1.51633309,120390.0,120380.0,0.1176021]
[1759437237594,1.51633309,120390.0,120380.0,0.03459]
[1759437237800,1.83618098,120390.0,120380.0,0.013]
[1759437238393,1.51633309,120390.0,120380.0,0.1170321]
[1759437240797,1.51633309,120390.0,120380.0,0.013]
[1759437241000,0.76365309,120390.0,120380.0,0.1170321]
[1759437241200,0.3608,120390.0,120380.0,0.43687999]
[1759437241502,0.44390295,120400.0,120390.0,0.1179352]
[1759437241701,0.36090205,120400.0,120390.0,0.43778309]
[1759437241904,1.11386205,120400.0,120390.0,0.43778309]
[1759437242297,1.11402205,120400.0,120390.0,0.43778309]
[1759437242897,0.00010205,120400.0,120390.0,0.43778309]
[1759437243096,0.75322205,120400.0,120390.0,0.79858309]
[1759437243296,0.75322205,120400.0,120390.0,0.80686624]
[1759437244097,0.00010205,120400.0,120390.0,0.80686624]
[1759437244304,0.00010205,120400.0,120390.0,1.52671413]
[1759437244997,0.00010205,120400.0,120390.0,1.20686624]
[1759437246396,0.00010205,120400.0,120390.0,2.27975413]
[1759437246597,0.3608,120420.0,120410.0,0.1179214]
[1759437246792,0.38414693,120420.0,120410.0,0.43776929]
[1759437246997,0.44378,120430.0,120420.0,0.0968945]
[1759437247203,1.2200874,120430.0,120420.0,0.43776239]
[1759437247397,0.3841474,120430.0,120420.0,0.43776239]
[1759437248200,0.0233474,120430.0,120420.0,0.43776239]
[1759437250696,0.106325,120430.0,120420.0,0.1179145]
[1759437250896,0.106325,120430.0,120420.0,0.43776239]
[1759437251710,0.467125,120430.0,120420.0,0.03493]
[1759437251912,1.18697289,120430.0,120420.0,0.01391]
[1759437252610,0.867125,120430.0,120420.0,0.01391]
[1759437252907,1.18697289,120430.0,120420.0,0.0968945]
[1759437253107,0.867125,120430.0,120420.0,0.0968945]
[1759437253303,1.18697289,120430.0,120420.0,0.01391]
[1759437253505,1.20628108,120430.0,120420.0,0.01391]
[1759437254310,1.20628108,120430.0,120420.0,0.0968945]
[1759437255415,1.20628108,120430.0,120420.0,0.01391]
[1759437256917,1.20628108,120430.0,120420.0,0.0968945]
[1759437257410,1.23943319,120430.0,120420.0,0.1179145]
[1759437257607,1.23943319,120430.0,120420.0,0.43776239]
[1759437257805,1.55928108,120430.0,120420.0,0.03493]
[1759437258115,1.95928108,120430.0,120420.0,0.01391]
[1759437258318,0.0829845,120420.0,120410.0,0.01391]
[1759437258505,1.10682768,120420.0,120410.0,0.01391]
[1759437258914,0.78697979,120420.0,120410.0,0.01391]
[1759437259504,0.76363239,120420.0,120410.0,0.01391]
[1759437260307,0.4437845,120420.0,120410.0,0.01391]
[1759437264917,0.4437845,120420.0,120410.0,0.0969014]
[1759437265116,1.1968645,120420.0,120410.0,0.0969014]
[1759437265822,1.1968245,120420.0,120410.0,0.0969014]
[1759437266621,1.1968245,120420.0,120410.0,0.01391]
[1759437267121,1.1968245,120420.0,120410.0,0.0969014]
[1759437268614,1.1968245,120420.0,120410.0,0.1191514]
[1759437269625,0.4437845,120420.0,120410.0,0.1191514]
[1759437269923,1.1967445,120420.0,120410.0,0.1191514]
[1759437270314,0.4437845,120420.0,120410.0,0.1191514]
[1759437270925,1.1965845,120420.0,120410.0,0.1191514]
[1759437271825,1.1136,120420.0,120410.0,0.1191514]
[1759437272126,0.75276,120420.0,120410.0,0.46672956]
[1759437272419,0.48208767,120430.0,120420.0,0.0829845]
[1759437272625,1.23484767,120430.0,120420.0,0.1187145]
[1759437273027,1.23488767,120430.0,120420.0,0.1187145]
[1759437275623,0.48208767,120430.0,120420.0,0.1187145]
[1759437275828,1.23480767,120430.0,120420.0,0.1187145]
[1759437276524,0.48208767,120430.0,120420.0,0.1187145]
[1759437276729,1.23476767,120430.0,120420.0,0.1187145]
[1759437280226,1.55460424,120430.0,120420.0,0.43855107]
[1759437281527,1.23476767,120430.0,120420.0,0.43855107]
[1759437281729,1.55460424,120430.0,120420.0,0.43855107]
[1759437282233,1.55460424,120430.0,120420.0,0.1187145]
[1759437282428,1.55460424,120430.0,120420.0,0.43855107]
[1759437283332,1.55460424,120430.0,120420.0,0.1187145]
[1759437283727,1.55460424,120430.0,120420.0,0.43855107]
[1759437286833,1.55460424,120430.0,120420.0,0.1187145]
[1759437287045,1.55460424,120430.0,120420.0,0.43855107]
[1759437287535,0.80192424,120430.0,120420.0,0.43855107]
[1759437287727,1.55416424,120430.0,120420.0,0.43855107]
[1759437288338,1.55416424,120430.0,120420.0,0.1187145]
[1759437288534,1.55416424,120430.0,120420.0,0.01348]
[1759437288724,2.27400081,120430.0,120420.0,0.01348]
[1759437288925,1.63432767,120430.0,120420.0,0.03573]
[1759437289127,1.55416424,120430.0,120420.0,0.43855107]
[1759437290537,1.55416424,120430.0,120420.0,0.0964645]
[1759437290738,1.55416424,120430.0,120420.0,0.41630107]
[1759437290933,1.55416424,120430.0,120420.0,0.43855107]
[1759437292531,1.23432767,120430.0,120420.0,0.43855107]
[1759437292732,1.55416424,120430.0,120420.0,0.43855107]
[1759437293644,0.80192424,120430.0,120420.0,0.43855107]
[1759437293941,1.55420424,120430.0,120420.0,0.43855107]
[1759437294335,0.80192424,120430.0,120420.0,0.43855107]
[1759437294536,1.55416424,120430.0,120420.0,0.43855107]
[1759437295332,1.55416424,120430.0,120420.0,0.1187145]
[1759437295833,1.55416424,120430.0,120420.0,0.43855107]
[1759437296539,0.80192424,120430.0,120420.0,0.43855107]
[1759437296739,1.55416424,120430.0,120420.0,0.43855107]
[1759437297533,1.55416424,120430.0,120420.0,0.75838764]
[1759437297534,0.39910517,120430.0,120420.0,0.75838764]
[1759437297738,0.01930819,120430.0,120420.0,1.15838764]
[1759437300140,0.01930819,120430.0,120420.0,1.54612548]
[1759437300339,0.01930819,120430.0,120420.0,1.58708891]
[1759437301938,0.01930819,120430.0,120420.0,1.22628891]
[1759437302632,0.38010819,120430.0,120420.0,1.22628891]
[1759437303041,0.01930819,120430.0,120420.0,1.22628891]
[1759437303240,0.38010819,120430.0,120420.0,1.22628891]
[1759437304237,0.01930819,120430.0,120420.0,1.22628891]
[1759437304946,1.51581257,120440.0,120430.0,0.1188676]
[1759437305239,1.51581257,120440.0,120430.0,0.43870417]
[1759437306334,2.25825933,120440.0,120430.0,0.1188676]
[1759437306734,2.23564914,120440.0,120430.0,0.43870417]
[1759437306939,1.91581257,120440.0,120430.0,0.43870417]
[1759437307234,2.23564914,120440.0,120430.0,0.43870417]
[1759437307642,2.23564914,120440.0,120430.0,0.1188676]
[1759437307842,2.25826168,120440.0,120430.0,0.1188676]
[1759437308047,2.23564914,120440.0,120430.0,0.1188676]
[1759437311443,1.91581257,120440.0,120430.0,0.1188676]
[1759437311644,1.91581257,120440.0,120430.0,0.43870417]
[1759437312349,0.4437707,120440.0,120430.0,0.75854074]
[1759437312550,1.1959307,120440.0,120430.0,0.43870417]
[1759437312753,0.4437707,120440.0,120430.0,0.43870417]
[1759437313050,1.1960907,120440.0,120430.0,0.43870417]
[1759437313844,0.38338372,120440.0,120430.0,0.75854074]
[1759437314048,1.11308,120450.0,120440.0,0.1188607]
[1759437314247,1.11308,120450.0,120440.0,0.75853384]
[1759437315251,1.11308,120450.0,120440.0,0.76666824]
[1759437315653,0.3608,120450.0,120440.0,0.76666824]
[1759437315845,0.46332109,120460.0,120450.0,0.1188538]
[1759437316045,1.23818151,120460.0,120450.0,0.43869037]
[1759437317648,0.02258042,120460.0,120450.0,0.43869037]
[1759437317849,0.77478042,120460.0,120450.0,0.43869037]
[1759437318046,0.85773732,120460.0,120450.0,0.43869037]
[1759437318251,1.17757389,120460.0,120450.0,0.1188538]
[1759437318558,1.17757389,120460.0,120450.0,0.43869037]
[1759437319753,0.42537389,120460.0,120450.0,0.43869037]
[1759437319953,1.17757389,120460.0,120450.0,0.43869037]
[1759437320252,0.85773732,120460.0,120450.0,0.43869037]
[1759437320846,1.17757389,120460.0,120450.0,0.43869037]
[1759437321053,1.53837389,120460.0,120450.0,0.43869037]
[1759437321450,1.21853732,120460.0,120450.0,0.43869037]
[1759437321852,0.77478042,120460.0,120450.0,0.43869037]
[1759437322053,0.77478042,120460.0,120450.0,0.75852694]
[1759437322242,0.10553732,120460.0,120450.0,0.75852694]
[1759437322443,0.11263213,120490.0,120450.0,0.75852694]
[1759437322444,0.02224795,120490.0,120480.0,0.1188332]
[1759437322755,0.07136241,120500.0,120490.0,0.1188263]
[1759437322947,0.04166998,120500.0,120490.0,0.75849944]
[1759437323146,0.04166998,120500.0,120490.0,1.51217944]
[1759437323354,0.04166998,120500.0,120490.0,1.87297944]
[1759437323553,0.01942203,120500.0,120490.0,1.94743349]
[1759437323853,0.01942203,120500.0,120490.0,1.12759684]
[1759437324052,0.01942203,120500.0,120490.0,1.88131684]
[1759437324257,0.01942203,120500.0,120490.0,1.12759684]
[1759437324449,0.01942203,120500.0,120490.0,2.28131684]
[1759437325250,0.02224795,120510.0,120500.0,0.1167294]
[1759437325450,0.02224795,120510.0,120500.0,1.51008254]
[1759437325451,0.4437225,120510.0,120500.0,1.51008254]
[1759437326059,0.3608,120510.0,120500.0,1.51008254]
[1759437326353,0.4437201,120520.0,120510.0,0.1180825]
[1759437326653,0.3608,120530.0,120520.0,0.1180756]
[1759437326858,0.4437062,120540.0,120530.0,0.1180688]
[1759437327048,0.76354277,120540.0,120530.0,0.43790537]
[1759437327249,0.4437062,120540.0,120530.0,0.43790537]
[1759437327456,0.4437062,120540.0,120530.0,0.1180688]
[1759437327656,0.76354277,120540.0,120530.0,1.19202537]
[1759437328150,0.4437062,120540.0,120530.0,0.78924]
[1759437328358,1.49156285,120540.0,120530.0,0.01349]
[1759437328656,0.4437019,120540.0,120530.0,0.97742537]
[1759437329156,1.08337504,120540.0,120530.0,0.78936]
[1759437329957,0.76353847,120540.0,120530.0,1.10919657]
[1759437330259,0.76353847,120540.0,120530.0,1.19210537]
[1759437331359,0.4437019,120540.0,120530.0,1.19210537]
[1759437332251,0.4437019,120540.0,120530.0,1.19149836]
[1759437332561,0.4436993,120550.0,120540.0,0.1180619]
[1759437332761,0.754,120560.0,120550.0,0.118055]
[1759437332964,0.8368881,120560.0,120550.0,0.43728456]
[1759437333264,1.1976881,120560.0,120550.0,0.872615]
[1759437334056,1.1976881,120560.0,120550.0,0.78972]
[1759437334257,0.4436881,120560.0,120550.0,0.78972]
[1759437334756,0.45203891,120560.0,120550.0,0.78972]
[1759437335154,0.4436881,120560.0,120550.0,0.118055]
[1759437335351,0.4436881,120560.0,120550.0,1.10878956]
[1759437336761,0.4436881,120560.0,120550.0,1.19168456]
[1759437337158,0.4436881,120560.0,120550.0,1.19152456]
[1759437337361,0.4436881,120560.0,120550.0,0.35438956]
[1759437337660,0.4436881,120560.0,120550.0,1.19152456]
[1759437338066,0.4436881,120560.0,120550.0,0.43728456]
[1759437338366,0.4436881,120560.0,120550.0,1.10850956]
[1759437338972,0.4436881,120560.0,120550.0,1.10846956]
[1759437339264,0.4436881,120560.0,120550.0,1.10842956]
[1759437341364,0.4436881,120560.0,120550.0,1.10826956]
[1759437343255,0.4436881,120560.0,120550.0,0.35438956]
[1759437343659,0.4436881,120560.0,120550.0,1.10810956]
[1759437343860,0.76291766,120560.0,120550.0,0.03516]
[1759437344060,0.76291766,120560.0,120550.0,0.78884]
[1759437346170,0.76291766,120560.0,120550.0,0.03516]
[1759437348373,0.4436881,120560.0,120550.0,0.03516]
[1759437348766,0.76291766,120560.0,120550.0,0.03516]
[1759437350162,1.16291766,120560.0,120550.0,0.03516]
[1759437350370,1.16291766,120560.0,120550.0,0.01349]
[1759437351172,1.91623766,120560.0,120550.0,0.03516]
[1759437352474,1.93832389,120560.0,120550.0,0.03516]
[1759437353371,1.93832389,120560.0,120550.0,0.01349]
[1759437353772,1.93832389,120560.0,120550.0,0.03516]
[1759437354270,1.93832389,120560.0,120550.0,0.01349]
[1759437355369,1.96057184,120560.0,120550.0,0.01349]
[1759437356775,1.64134228,120560.0,120550.0,0.03516]
[1759437357074,1.96057184,120560.0,120550.0,0.03516]
[1759437357378,1.99026427,120560.0,120550.0,0.03516]
[1759437357577,1.96057184,120560.0,120550.0,0.03516]
[1759437357779,1.96057184,120560.0,120550.0,0.01349]
[1759437357979,1.99026427,120560.0,120550.0,0.01349]
[1759437358277,1.99026427,120560.0,120550.0,0.03586]
[1759437358278,1.96057184,120560.0,120550.0,0.03586]
[1759437359275,1.96057184,120560.0,120550.0,0.01349]
[1759437360182,1.96057184,120560.0,120550.0,0.03586]
[1759437360880,1.96057184,120560.0,120550.0,0.01349]
[1759437361480,1.96057184,120560.0,120550.0,0.03586]
[1759437362778,1.64134228,120560.0,120550.0,0.03586]
[1759437363794,1.96057184,120560.0,120550.0,0.03586]
[1759437364987,1.96057184,120560.0,120550.0,0.01349]
[1759437367994,0.082895,120550.0,120540.0,0.01349]
[1759437368191,0.46578123,120550.0,120540.0,0.1187619]
[1759437369986,0.46578123,120550.0,120540.0,0.43799146]
[1759437370292,0.48802918,120550.0,120540.0,0.43799146]
[1759437370794,0.46578123,120550.0,120540.0,0.43799146]
[1759437373788,0.10498123,120550.0,120540.0,0.43799146]
[1759437373989,0.46578123,120550.0,120540.0,0.43799146]
[1759437377792,0.46578123,120550.0,120540.0,0.1187619]
[1759437378193,0.46578123,120550.0,120540.0,0.43799146]
[1759437379098,0.46578123,120550.0,120540.0,0.1187619]
[1759437379494,0.78501079,120550.0,120540.0,0.03586]
[1759437379697,0.78501079,120550.0,120540.0,0.01349]
[1759437379997,0.78501079,120550.0,120530.0,0.01349]
[1759437379998,0.0829019,120540.0,120530.0,0.01349]
[1759437380193,1.53709769,120540.0,120530.0,0.01349]
[1759437380391,1.51501146,120540.0,120530.0,0.01349]
[1759437380593,0.0829156,120520.0,120510.0,0.0968621]
[1759437380896,0.76294516,120520.0,120510.0,0.0968621]
[1759437381493,0.4437156,120520.0,120510.0,0.0968621]